fUSD/lending_fUSD_20250107
["ID","MTS","AMOUNT","RATE_DAILY","PERIOD"]
[348020486,1736268643745,-1190.44,9.046e-05,2]
[348020488,1736268643755,-793.26,9.046e-05,2]
[348020491,1736268643766,-1546.56,9.046e-05,2]
[348020493,1736268643775,-722.34,9.046e-05,2]
[348020495,1736268643785,-500.0,9.046e-05,2]
[348020497,1736268643795,-1887.44,9.046e-05,2]
[348020498,1736268643805,-1149.51,9.046e-05,2]
[348020500,1736268643815,-500.0,9.046e-05,2]
[348020503,1736268643824,-865.45,9.046e-05,2]
[348020504,1736268643834,-807.88,9.046e-05,2]
[348020506,1736268643844,-500.0,9.046e-05,2]
[348020509,1736268643854,-910.92,9.046e-05,2]
[348020511,1736268643863,-500.0,9.046e-05,2]
[348020513,1736268643873,-500.0,9.046e-05,2]
[348020515,1736268643883,-500.0,9.046e-05,2]
[348020517,1736268643892,-500.0,9.046e-05,2]
[348020519,1736268643902,-1777.29,9.046e-05,2]
[348020521,1736268643911,-500.0,9.046e-05,2]
[348020523,1736268643920,-706.99,9.046e-05,2]
[348020525,1736268643930,-757.84,9.046e-05,2]
[348020527,1736268643941,-500.0,9.046e-05,2]
[348020529,1736268643950,-5860.4,9.046e-05,2]
[348020531,1736268643960,-500.0,9.046e-05,2]
[348020533,1736268643971,-500.0,9.046e-05,2]
[348020535,1736268643980,-1001.12,9.046e-05,2]
[348020537,1736268643989,-218.463418,9.046e-05,2]
[348020539,1736268643998,-2561.02,9.046e-05,2]
[348020541,1736268644007,-500.0,9.046e-05,2]
[348020543,1736268644017,-1084.58,9.046e-05,2]
[348020545,1736268644026,-4263.82,9.046e-05,2]
[348020547,1736268644035,-500.0,9.046e-05,2]
[348020549,1736268644045,-1460.17,9.046e-05,2]
[348020551,1736268644054,-500.0,9.046e-05,2]
[348020553,1736268644063,-233.574732,9.046e-05,2]
[348020555,1736268644073,-1616.76,9.046e-05,2]
[348020557,1736268644082,-500.0,9.046e-05,2]
[348020559,1736268644092,-2923.63,9.046e-05,2]
[348020561,1736268644102,-360.80274522,9.046e-05,2]
[348020562,1736268644112,-1003.09,9.046e-05,2]
[348020565,1736268644121,-500.0,9.046e-05,2]
[348020567,1736268644132,-942.56,9.046e-05,2]
[348020569,1736268644141,-500.0,9.046e-05,2]
[348020571,1736268644151,-4714.17,9.046e-05,2]
[348020573,1736268644161,-4374.14,9.046e-05,2]
[348020575,1736268644171,-592.62,9.046e-05,2]
[348020577,1736268644181,-500.0,9.046e-05,2]
[348020579,1736268644190,-2206.35,9.046e-05,2]
[348020580,1736268644200,-1217.32,9.046e-05,2]
[348020582,1736268644210,-500.0,9.046e-05,2]
[348020585,1736268644223,-500.0,9.046e-05,2]
[348020587,1736268644234,-779.65,9.046e-05,2]
[348020589,1736268644244,-544.8,9.046e-05,2]
[348020591,1736268644255,-2901.84,9.046e-05,2]
[348020593,1736268644266,-794.55,9.046e-05,2]
[348020595,1736268644277,-884.2,9.046e-05,2]
[348020597,1736268644287,-2312.21,9.046e-05,2]
[348020599,1736268644297,-500.0,9.046e-05,2]
[348020601,1736268644307,-500.0,9.046e-05,2]
[348020603,1736268644317,-1059.63,9.046e-05,2]
[348020605,1736268644327,-604.36,9.046e-05,2]
[348020607,1736268644337,-779.93,9.046e-05,2]
[348020609,1736268644347,-500.0,9.046e-05,2]
[348020611,1736268644357,-1153.17,9.046e-05,2]
[348020613,1736268644369,-500.0,9.046e-05,2]
[348020615,1736268644380,-500.0,9.046e-05,2]
[348020617,1736268644391,-559.47,9.046e-05,2]
[348020619,1736268644402,-1870.96,9.046e-05,2]
[348020621,1736268644413,-782.74,9.046e-05,2]
[348020623,1736268644424,-500.0,9.046e-05,2]
[348020625,1736268644436,-1083.61,9.046e-05,2]
[348020627,1736268644446,-595.86,9.046e-05,2]
[348020629,1736268644461,-500.0,9.046e-05,2]
[348020631,1736268644476,-500.0,9.046e-05,2]
[348020633,1736268644486,-818.1,9.046e-05,2]
[348020635,1736268644506,-500.0,9.046e-05,2]
[348020637,1736268644517,-715.2,9.046e-05,2]
[348020639,1736268644529,-1115.91,9.046e-05,2]
[348020641,1736268644544,-397.08342695,9.046e-05,2]
[348020643,1736268644555,-500.0,9.046e-05,2]
[348020645,1736268644566,-500.0,9.047e-05,2]
[348020647,1736268644578,-500.0,9.047e-05,2]
[348020649,1736268644588,-500.0,9.047e-05,2]
[348020651,1736268644599,-500.0,9.047e-05,2]
[348020653,1736268644609,-500.0,9.047e-05,2]
[348020655,1736268644621,-500.0,9.047e-05,2]
[348020657,1736268644631,-500.0,9.047e-05,2]
[348020659,1736268644641,-500.0,9.047e-05,2]
[348020661,1736268644650,-500.0,9.047e-05,2]
[348020663,1736268644662,-500.0,9.047e-05,2]
[348020665,1736268644671,-500.0,9.047e-05,2]
[348020667,1736268644681,-500.0,9.047e-05,2]
[348020669,1736268644691,-500.0,9.047e-05,2]
[348020671,1736268644702,-533.91,9.047e-05,2]
[348020673,1736268644713,-500.0,9.047e-05,2]
[348020675,1736268644725,-500.0,9.047e-05,2]
[348020677,1736268644735,-500.0,9.047e-05,2]
[348020679,1736268644746,-500.0,9.047e-05,2]
[348020681,1736268644755,-500.0,9.047e-05,2]
[348020683,1736268644765,-500.0,9.047e-05,2]
[348020685,1736268644775,-500.0,9.047e-05,2]
[348020687,1736268644786,-500.0,9.047e-05,2]
[348020689,1736268644797,-500.0,9.047e-05,2]
[348020692,1736268644807,-500.0,9.047e-05,2]
[348020694,1736268644816,-500.0,9.047e-05,2]
[348020696,1736268644826,-500.0,9.047e-05,2]
[348020698,1736268644835,-500.0,9.047e-05,2]
[348020699,1736268644846,-538.96,9.047e-05,2]
[348020702,1736268644855,-500.0,9.047e-05,2]
[348020704,1736268644865,-364.63025745,9.047e-05,2]
[348020706,1736268644875,-500.0,9.047e-05,2]
[348020708,1736268644885,-500.0,9.047e-05,2]
[348020710,1736268644894,-500.0,9.047e-05,2]
[348020712,1736268644903,-500.0,9.047e-05,2]
[348020714,1736268644912,-500.0,9.047e-05,2]
[348020715,1736268644922,-500.0,9.047e-05,2]
[348020718,1736268644931,-845.74,9.047e-05,2]
[348020720,1736268644941,-500.0,9.047e-05,2]
[348020722,1736268644950,-500.0,9.047e-05,2]
[348020724,1736268644960,-500.0,9.047e-05,2]
[348020726,1736268644970,-500.0,9.047e-05,2]
[348020728,1736268644980,-500.0,9.047e-05,2]
[348020730,1736268644990,-500.0,9.047e-05,2]
[348020732,1736268644999,-592.86,9.047e-05,2]
[348020734,1736268645008,-500.0,9.047e-05,2]
[348020736,1736268645018,-600.81,9.047e-05,2]
[348020737,1736268645028,-500.0,9.047e-05,2]
[348020739,1736268645039,-500.0,9.047e-05,2]
[348020741,1736268645049,-519.72,9.047e-05,2]
[348020743,1736268645058,-500.0,9.047e-05,2]
[348020745,1736268645067,-819.07,9.047e-05,2]
[348020747,1736268645076,-500.0,9.047e-05,2]
[348020748,1736268645086,-518.34,9.047e-05,2]
[348020750,1736268645096,-500.0,9.047e-05,2]
[348020752,1736268645106,-616.88,9.047e-05,2]
[348020754,1736268645115,-500.0,9.047e-05,2]
[348020756,1736268645125,-500.0,9.047e-05,2]
[348020758,1736268645134,-500.0,9.047e-05,2]
[348020760,1736268645143,-500.0,9.047e-05,2]
[348020762,1736268645152,-500.0,9.047e-05,2]
[348020763,1736268645161,-500.0,9.047e-05,2]
[348020765,1736268645172,-500.0,9.047e-05,2]
[348020767,1736268645181,-500.0,9.047e-05,2]
[348020769,1736268645191,-557.8678215,9.047e-05,2]
[348020771,1736268645201,-500.0,9.047e-05,2]
[348020773,1736268645210,-500.0,9.047e-05,2]
[348020775,1736268645222,-500.0,9.047e-05,2]
[348020777,1736268645232,-500.0,9.047e-05,2]
[348020778,1736268645241,-500.0,9.047e-05,2]
[348020780,1736268645251,-500.0,9.047e-05,2]
[348020782,1736268645260,-500.0,9.047e-05,2]
[348020784,1736268645270,-870.58,9.047e-05,2]
[348020786,1736268645279,-687.56,9.047e-05,2]
[348020788,1736268645289,-500.0,9.047e-05,2]
[348020790,1736268645299,-791.82,9.047e-05,2]
[348020792,1736268645309,-500.0,9.047e-05,2]
[348020794,1736268645319,-500.0,9.047e-05,2]
[348020796,1736268645329,-500.0,9.047e-05,2]
[348020798,1736268645338,-500.0,9.047e-05,2]
[348020800,1736268645348,-500.0,9.047e-05,2]
[348020801,1736268645357,-500.0,9.047e-05,2]
[348020803,1736268645367,-500.0,9.047e-05,2]
[348020805,1736268645377,-927.26,9.047e-05,2]
[348020807,1736268645386,-558.34,9.047e-05,2]
[348020809,1736268645396,-500.0,9.047e-05,2]
[348020811,1736268645406,-500.0,9.047e-05,2]
[348020813,1736268645415,-655.3,9.047e-05,2]
[348020815,1736268645425,-557.31,9.047e-05,2]
[348020818,1736268645434,-656.36,9.047e-05,2]
[348020819,1736268645443,-500.0,9.047e-05,2]
[348020821,1736268645453,-918.28,9.047e-05,2]
[348020823,1736268645462,-582.18,9.047e-05,2]
[348020825,1736268645474,-500.0,9.047e-05,2]
[348020827,1736268645484,-685.99,9.047e-05,2]
[348020829,1736268645493,-500.0,9.047e-05,2]
[348020831,1736268645506,-500.0,9.047e-05,2]
[348020834,1736268645520,-500.0,9.047e-05,2]
[348020836,1736268645539,-583.44,9.047e-05,2]
[348020838,1736268645552,-500.0,9.047e-05,2]
[348020840,1736268645563,-641.46,9.047e-05,2]
[348020843,1736268645577,-612.42,9.047e-05,2]
[348020845,1736268645590,-500.0,9.047e-05,2]
[348020847,1736268645603,-520.7,9.047e-05,2]
[348020849,1736268645617,-500.0,9.047e-05,2]
[348020851,1736268645631,-500.0,9.047e-05,2]
[348020854,1736268645643,-500.0,9.047e-05,2]
[348020856,1736268645656,-500.0,9.047e-05,2]
[348020858,1736268645666,-505.14,9.047e-05,2]
[348020860,1736268645680,-500.0,9.047e-05,2]
[348020862,1736268645694,-500.0,9.047e-05,2]
[348020864,1736268645708,-500.0,9.047e-05,2]
[348020866,1736268645723,-735.13,9.047e-05,2]
[348020869,1736268645738,-500.0,9.047e-05,2]
[348020871,1736268645753,-512.9,9.047e-05,2]
[348020873,1736268645770,-500.0,9.047e-05,2]
[348020875,1736268645785,-500.0,9.047e-05,2]
[348020877,1736268645801,-500.0,9.047e-05,2]
[348020880,1736268645815,-500.0,9.047e-05,2]
[348020882,1736268645831,-500.0,9.047e-05,2]
[348020884,1736268645845,-500.0,9.047e-05,2]
[348020887,1736268645858,-500.0,9.047e-05,2]
[348020889,1736268645872,-597.15,9.047e-05,2]
[348020891,1736268645888,-921.38,9.047e-05,2]
[348020893,1736268645904,-500.0,9.047e-05,2]
[348020895,1736268645918,-500.0,9.047e-05,2]
[348020897,1736268645932,-500.0,9.047e-05,2]
[348020899,1736268645945,-500.0,9.047e-05,2]
[348020901,1736268645959,-851.41,9.047e-05,2]
[348020903,1736268645979,-500.0,9.047e-05,2]
[348020905,1736268645997,-500.0,9.047e-05,2]
[348020908,1736268646009,-500.0,9.047e-05,2]
[348020910,1736268646022,-500.0,9.047e-05,2]
[348020912,1736268646037,-500.0,9.047e-05,2]
[348020914,1736268646052,-500.0,9.047e-05,2]
[348020916,1736268646069,-500.0,9.047e-05,2]
[348020918,1736268646083,-500.0,9.047e-05,2]
[348020919,1736268646096,-500.0,9.047e-05,2]
[348020920,1736268646108,-500.0,9.047e-05,2]
[348020921,1736268646121,-500.0,9.047e-05,2]
[348020922,1736268646134,-500.0,9.047e-05,2]
[348020923,1736268646146,-538.02,9.047e-05,2]
[348020924,1736268646159,-526.88,9.047e-05,2]
[348020925,1736268646172,-969.14,9.047e-05,2]
[348020926,1736268646185,-546.96032371,9.047e-05,2]
[348020927,1736268646198,-500.0,9.047e-05,2]
[348020928,1736268646210,-850.4,9.047e-05,2]
[348020929,1736268646221,-500.0,9.047e-05,2]
[348020930,1736268646233,-500.0,9.047e-05,2]
[348020931,1736268646245,-500.0,9.047e-05,2]
[348020932,1736268646257,-500.0,9.047e-05,2]
[348020933,1736268646269,-1025.87,9.047e-05,2]
[348020934,1736268646280,-877.47,9.047e-05,2]
[348020935,1736268646292,-500.0,9.047e-05,2]
[348020937,1736268646304,-500.0,9.047e-05,2]
[348020940,1736268646316,-500.0,9.047e-05,2]
[348020942,1736268646327,-615.53,9.047e-05,2]
[348020944,1736268646339,-500.0,9.047e-05,2]
[348020946,1736268646350,-500.0,9.047e-05,2]
[348020948,1736268646361,-500.0,9.047e-05,2]
[348020950,1736268646371,-590.64,9.047e-05,2]
[348020952,1736268646383,-500.0,9.047e-05,2]
[348020954,1736268646394,-500.0,9.047e-05,2]
[348020956,1736268646406,-585.59,9.047e-05,2]
[348020958,1736268646417,-500.0,9.047e-05,2]
[348020961,1736268646428,-500.0,9.047e-05,2]
[348020963,1736268646443,-449.34325223,9.047e-05,2]
[348020965,1736268646455,-646.69,9.047e-05,2]
[348020967,1736268646466,-500.0,9.047e-05,2]
[348020969,1736268646482,-500.0,9.047e-05,2]
[348020971,1736268646493,-420.0,9.175e-05,2]
[348020974,1736268646505,-1000.0,9.247e-05,2]
[348020976,1736268646516,-500.0,9.319e-05,2]
[348020978,1736268646529,-1321.84,9.319e-05,2]
[348020980,1736268646541,-500.0,9.32e-05,2]
[348020982,1736268646555,-556.07,9.32e-05,2]
[348020984,1736268646566,-850.62,9.32e-05,2]
[348020986,1736268646578,-500.0,9.32e-05,2]
[348020988,1736268646590,-500.0,9.32e-05,2]
[348020991,1736268646602,-500.0,9.32e-05,2]
[348020993,1736268646613,-590.0,9.32e-05,2]
[348020995,1736268646624,-500.0,9.32e-05,2]
[348020997,1736268646636,-500.0,9.32e-05,2]
[348020999,1736268646648,-733.92,9.32e-05,2]
[348021001,1736268646659,-836.91,9.32e-05,2]
[348021003,1736268646670,-722.53,9.32e-05,2]
[348021005,1736268646683,-500.0,9.32e-05,2]
[348021007,1736268646694,-897.94,9.32e-05,2]
[348021009,1736268646707,-280.21696612,9.32e-05,2]
[348021012,1736268646718,-500.0,9.32e-05,2]
[348021014,1736268646733,-544.52,9.32e-05,2]
[348021016,1736268646744,-500.0,9.32e-05,2]
[348021018,1736268646757,-500.0,9.32e-05,2]
[348021020,1736268646770,-500.0,9.32e-05,2]
[348021022,1736268646782,-500.0,9.32e-05,2]
[348021024,1736268646793,-797.59,9.32e-05,2]
[348021026,1736268646805,-593.4,9.32e-05,2]
[348021028,1736268646817,-500.0,9.32e-05,2]
[348021030,1736268646828,-500.0,9.32e-05,2]
[348021032,1736268646840,-500.0,9.32e-05,2]
[348021035,1736268646853,-910.72,9.32e-05,2]
[348021037,1736268646864,-519.37,9.32e-05,2]
[348021039,1736268646875,-812.74,9.32e-05,2]
[348021041,1736268646887,-500.0,9.32e-05,2]
[348021043,1736268646899,-500.0,9.32e-05,2]
[348021045,1736268646910,-500.0,9.32e-05,2]
[348021047,1736268646921,-531.28,9.32e-05,2]
[348021050,1736268646932,-500.0,9.32e-05,2]
[348021052,1736268646943,-528.34,9.32e-05,2]
[348021054,1736268646954,-1325.98,9.32e-05,2]
[348021056,1736268646966,-826.1,9.32e-05,2]
[348021058,1736268646980,-500.0,9.32e-05,2]
[348021060,1736268646991,-500.0,9.32e-05,2]
[348021062,1736268647002,-582.94,9.32e-05,2]
[348021064,1736268647013,-960.33,9.32e-05,2]
[348021067,1736268647025,-749.9,9.32e-05,2]
[348021069,1736268647036,-500.0,9.32e-05,2]
[348021070,1736268647047,-824.34,9.32e-05,2]
[348021071,1736268647058,-500.0,9.32e-05,2]
[348021072,1736268647069,-1090.09,9.32e-05,2]
[348021073,1736268647080,-557.29,9.32e-05,2]
[348021074,1736268647091,-663.62,9.32e-05,2]
[348021075,1736268647102,-557.55,9.32e-05,2]
[348021076,1736268647113,-500.0,9.32e-05,2]
[348021077,1736268647125,-500.0,9.32e-05,2]
[348021078,1736268647136,-500.0,9.32e-05,2]
[348021079,1736268647147,-1547.89,9.32e-05,2]
[348021080,1736268647159,-500.0,9.32e-05,2]
[348021081,1736268647171,-913.99,9.32e-05,2]
[348021082,1736268647183,-500.0,9.32e-05,2]
[348021083,1736268647194,-500.0,9.32e-05,2]
[348021084,1736268647206,-500.0,9.32e-05,2]
[348021085,1736268647218,-582.8,9.32e-05,2]
[348021086,1736268647231,-500.0,9.32e-05,2]
[348021087,1736268647243,-202.01,9.32e-05,2]
[348021088,1736268647254,-223.0682267,9.32e-05,2]
[348021089,1736268647266,-735.69,9.32e-05,2]
[348021090,1736268647279,-500.0,9.32e-05,2]
[348021091,1736268647291,-548.74,9.32e-05,2]
[348021092,1736268647303,-567.82,9.32e-05,2]
[348021093,1736268647315,-500.0,9.32e-05,2]
[348021094,1736268647328,-609.14,9.32e-05,2]
[348021096,1736268647341,-853.91,9.32e-05,2]
[348021098,1736268647352,-500.0,9.32e-05,2]
[348021100,1736268647364,-1921.49,9.32e-05,2]
[348021102,1736268647376,-1230.46,9.32e-05,2]
[348021104,1736268647387,-500.0,9.32e-05,2]
[348021106,1736268647399,-553.12,9.32e-05,2]
[348021108,1736268647410,-863.2,9.32e-05,2]
[348021109,1736268647422,-531.05,9.32e-05,2]
[348021110,1736268647433,-500.0,9.32e-05,2]
[348021111,1736268647445,-500.0,9.32e-05,2]
[348021112,1736268647456,-500.0,9.32e-05,2]
[348021113,1736268647467,-237.1710236,9.32e-05,2]
[348021114,1736268647481,-773.27,9.32e-05,2]
[348021115,1736268647493,-500.0,9.32e-05,2]
[348021116,1736268647504,-831.05,9.32e-05,2]
[348021117,1736268647517,-2392.33,9.32e-05,2]
[348021118,1736268647532,-514.77,9.32e-05,2]
[348021119,1736268647544,-912.02,9.32e-05,2]
[348021120,1736268647556,-1029.27,9.32e-05,2]
[348021121,1736268647567,-1494.48,9.32e-05,2]
[348021122,1736268647579,-2127.93,9.32e-05,2]
[348021123,1736268647591,-500.0,9.32e-05,2]
[348021124,1736268647604,-500.0,9.32e-05,2]
[348021125,1736268647616,-1004.88,9.32e-05,2]
[348021126,1736268647627,-858.75,9.32e-05,2]
[348021127,1736268647638,-1358.1,9.32e-05,2]
[348021128,1736268647649,-2342.11,9.32e-05,2]
[348021129,1736268647660,-539.24,9.32e-05,2]
[348021130,1736268647672,-609.78,9.32e-05,2]
[348021131,1736268647683,-1333.64,9.32e-05,2]
[348021132,1736268647695,-2822.03,9.32e-05,2]
[348021133,1736268647707,-500.0,9.32e-05,2]
[348021134,1736268647719,-602.54,9.32e-05,2]
[348021135,1736268647731,-500.0,9.32e-05,2]
[348021136,1736268647743,-1051.54,9.32e-05,2]
[348021137,1736268647757,-1190.44,9.32e-05,2]
[348021138,1736268647767,-793.26,9.32e-05,2]
[348021139,1736268647778,-1546.56,9.32e-05,2]
[348021140,1736268647788,-722.34,9.32e-05,2]
[348021141,1736268647797,-500.0,9.32e-05,2]
[348021142,1736268647806,-1887.44,9.32e-05,2]
[348021143,1736268647816,-1149.51,9.32e-05,2]
[348021144,1736268647825,-500.0,9.32e-05,2]
[348021145,1736268647833,-865.45,9.32e-05,2]
[348021146,1736268647843,-807.88,9.32e-05,2]
[348021147,1736268647854,-500.0,9.32e-05,2]
[348021148,1736268647864,-910.92,9.32e-05,2]
[348021149,1736268647877,-500.0,9.32e-05,2]
[348021150,1736268647887,-500.0,9.32e-05,2]
[348021151,1736268647898,-500.0,9.32e-05,2]
[348021152,1736268647910,-500.0,9.32e-05,2]
[348021153,1736268647921,-1777.29,9.32e-05,2]
[348021154,1736268647932,-706.99,9.32e-05,2]
[348021155,1736268647944,-757.84,9.32e-05,2]
[348021156,1736268647954,-500.0,9.32e-05,2]
[348021157,1736268647965,-5860.4,9.32e-05,2]
[348021158,1736268647976,-500.0,9.32e-05,2]
[348021159,1736268647987,-500.0,9.32e-05,2]
[348021160,1736268647998,-1001.12,9.32e-05,2]
[348021161,1736268648009,-218.463418,9.32e-05,2]
[348021162,1736268648021,-2561.02,9.32e-05,2]
[348021163,1736268648032,-500.0,9.32e-05,2]
[348021164,1736268648043,-1084.58,9.32e-05,2]
[348021165,1736268648055,-4263.82,9.32e-05,2]
[348021166,1736268648066,-500.0,9.32e-05,2]
[348021167,1736268648078,-1460.17,9.32e-05,2]
[348021168,1736268648089,-500.0,9.32e-05,2]
[348021169,1736268648100,-233.574732,9.32e-05,2]
[348021170,1736268648109,-1616.76,9.32e-05,2]
[348021171,1736268648118,-500.0,9.32e-05,2]
[348021172,1736268648510,-2923.63,9.32e-05,2]
[348021173,1736268648539,-1003.09,9.32e-05,2]
[348021174,1736268648570,-500.0,9.32e-05,2]
[348021175,1736268648584,-942.56,9.32e-05,2]
[348021176,1736268648596,-500.0,9.32e-05,2]
[348021177,1736268648607,-4714.17,9.32e-05,2]
[348021178,1736268648618,-4374.14,9.32e-05,2]
[348021179,1736268648629,-592.62,9.32e-05,2]
[348021180,1736268648640,-500.0,9.32e-05,2]
[348021181,1736268648650,-2206.35,9.32e-05,2]
[348021182,1736268648661,-1217.32,9.32e-05,2]
[348021183,1736268648671,-500.0,9.32e-05,2]
[348021184,1736268648682,-500.0,9.32e-05,2]
[348021185,1736268648692,-779.65,9.32e-05,2]
[348021186,1736268648702,-544.8,9.32e-05,2]
[348021187,1736268648713,-2901.84,9.32e-05,2]
[348021188,1736268648725,-794.55,9.32e-05,2]
[348021189,1736268648735,-884.2,9.32e-05,2]
[348021190,1736268648747,-2312.21,9.32e-05,2]
[348021191,1736268648757,-187.94908588,9.32e-05,2]
[348021192,1736268648768,-500.0,9.32e-05,2]
[348021193,1736268648779,-604.36,9.32e-05,2]
[348021194,1736268648789,-1059.63,9.32e-05,2]
[348021195,1736268648799,-779.93,9.32e-05,2]
[348021196,1736268648809,-1153.17,9.32e-05,2]
[348021197,1736268648819,-500.0,9.32e-05,2]
[348021198,1736268648829,-500.0,9.32e-05,2]
[348021199,1736268648839,-500.0,9.32e-05,2]
[348021200,1736268648848,-559.47,9.32e-05,2]
[348021201,1736268648859,-1870.96,9.32e-05,2]
[348021202,1736268648869,-782.74,9.32e-05,2]
[348021203,1736268648879,-500.0,9.32e-05,2]
[348021204,1736268648888,-1083.61,9.32e-05,2]
[348021205,1736268648898,-595.86,9.32e-05,2]
[348021206,1736268648909,-500.0,9.32e-05,2]
[348021207,1736268648920,-500.0,9.32e-05,2]
[348021208,1736268648929,-500.0,9.32e-05,2]
[348021209,1736268648939,-715.2,9.32e-05,2]
[348021210,1736268648949,-1115.91,9.32e-05,2]
[348021211,1736268648959,-818.1,9.32e-05,2]
[348021212,1736268648969,-500.0,9.32e-05,2]
[348021213,1736268648981,-500.0,9.321e-05,2]
[348021214,1736268648991,-500.0,9.321e-05,2]
[348021215,1736268649001,-500.0,9.321e-05,2]
[348021216,1736268649011,-500.0,9.321e-05,2]
[348021217,1736268649021,-500.0,9.321e-05,2]
[348021218,1736268649031,-500.0,9.321e-05,2]
[348021219,1736268649041,-500.0,9.321e-05,2]
[348021220,1736268649051,-500.0,9.321e-05,2]
[348021221,1736268649061,-500.0,9.321e-05,2]
[348021222,1736268649070,-500.0,9.321e-05,2]
[348021223,1736268649081,-500.0,9.321e-05,2]
[348021224,1736268649092,-378.08903412,9.321e-05,2]
[348021225,1736268649102,-500.0,9.321e-05,2]
[348021226,1736268649112,-533.91,9.321e-05,2]
[348021227,1736268649122,-500.0,9.321e-05,2]
[348021228,1736268649133,-500.0,9.321e-05,2]
[348021229,1736268649142,-500.0,9.321e-05,2]
[348021230,1736268649152,-500.0,9.321e-05,2]
[348021231,1736268649162,-500.0,9.321e-05,2]
[348021232,1736268649172,-500.0,9.321e-05,2]
[348021233,1736268649182,-500.0,9.321e-05,2]
[348021234,1736268649192,-500.0,9.321e-05,2]
[348021235,1736268649201,-500.0,9.321e-05,2]
[348021236,1736268649211,-500.0,9.321e-05,2]
[348021237,1736268649222,-500.0,9.321e-05,2]
[348021238,1736268649233,-500.0,9.321e-05,2]
[348021239,1736268649244,-500.0,9.321e-05,2]
[348021240,1736268649253,-538.96,9.321e-05,2]
[348021241,1736268649264,-500.0,9.321e-05,2]
[348021242,1736268649274,-500.0,9.321e-05,2]
[348021243,1736268649284,-500.0,9.321e-05,2]
[348021244,1736268649294,-500.0,9.321e-05,2]
[348021245,1736268649304,-500.0,9.321e-05,2]
[348021246,1736268649314,-500.0,9.321e-05,2]
[348021247,1736268649324,-500.0,9.321e-05,2]
[348021248,1736268649334,-845.74,9.321e-05,2]
[348021249,1736268649344,-500.0,9.321e-05,2]
[348021250,1736268649353,-500.0,9.321e-05,2]
[348021251,1736268649363,-500.0,9.321e-05,2]
[348021252,1736268649373,-500.0,9.321e-05,2]
[348021253,1736268649382,-500.0,9.321e-05,2]
[348021254,1736268649392,-500.0,9.321e-05,2]
[348021255,1736268649402,-592.86,9.321e-05,2]
[348021256,1736268649411,-500.0,9.321e-05,2]
[348021257,1736268649421,-600.81,9.321e-05,2]
[348021258,1736268649430,-500.0,9.321e-05,2]
[348021259,1736268649440,-500.0,9.321e-05,2]
[348021260,1736268649450,-519.72,9.321e-05,2]
[348021261,1736268649459,-500.0,9.321e-05,2]
[348021262,1736268649469,-819.07,9.321e-05,2]
[348021263,1736268649480,-500.0,9.321e-05,2]
[348021264,1736268649489,-518.34,9.321e-05,2]
[348021265,1736268649499,-616.88,9.321e-05,2]
[348021266,1736268649508,-500.0,9.321e-05,2]
[348021267,1736268649518,-500.0,9.321e-05,2]
[348021268,1736268649530,-500.0,9.321e-05,2]
[348021269,1736268649540,-500.0,9.321e-05,2]
[348021270,1736268649553,-500.0,9.321e-05,2]
[348021271,1736268649562,-500.0,9.321e-05,2]
[348021272,1736268649573,-500.0,9.321e-05,2]
[348021273,1736268649583,-500.0,9.321e-05,2]
[348021274,1736268649592,-500.0,9.321e-05,2]
[348021275,1736268649602,-500.0,9.321e-05,2]
[348021276,1736268649612,-500.0,9.321e-05,2]
[348021277,1736268649621,-500.0,9.321e-05,2]
[348021278,1736268649630,-500.0,9.321e-05,2]
[348021279,1736268649641,-500.0,9.321e-05,2]
[348021280,1736268649650,-870.58,9.321e-05,2]
[348021281,1736268649660,-687.56,9.321e-05,2]